bitfinex/quotes_BTCUSD_20220103
["timestamp","ask_amount","ask_price","bid_price","bid_amount"]
[1641176828047,0.13123287,46972.0,46971.0,1.42572831]
[1641176830497,0.13123287,46972.0,46971.0,1.22572831]
[1641176830699,0.13123287,46972.0,46971.0,0.92602533]
[1641176830897,0.13123287,46972.0,46971.0,0.49842936]
[1641176831099,0.13123287,46972.0,46967.0,0.106434]
[1641176831497,0.26137185,46970.0,46967.0,0.106434]
[1641176831699,0.31459485,46970.0,46961.0,0.00126882]
[1641176831902,0.26137185,46970.0,46960.0,1.26816111]
[1641176832100,0.26137185,46970.0,46966.0,0.59911577]
[1641176832702,0.05322623,46969.0,46966.0,0.59911577]
[1641176832906,0.106449,46967.0,46964.0,0.053226]
[1641176833943,0.053224,46966.0,46964.0,0.053226]
[1641176834145,0.053224,46966.0,46965.0,0.346249]
[1641176834746,0.053224,46966.0,46964.0,0.65234177]
[1641176838599,0.053224,46966.0,46964.0,0.053226]
[1641176843350,0.084673,46967.0,46964.0,0.053226]
[1641176844745,0.053224,46966.0,46964.0,0.053226]
[1641176847099,0.053224,46966.0,46965.0,0.52303442]
[1641176847998,0.183224,46966.0,46965.0,0.52303442]
[1641176857749,0.183224,46966.0,46964.0,0.053226]
[1641176867068,0.183224,46966.0,46965.0,0.346249]
[1641176867905,0.183224,46966.0,46964.0,0.053226]
[1641176869506,0.183224,46966.0,46965.0,0.346249]
[1641176871105,0.183224,46966.0,46964.0,0.053226]
[1641176871306,0.183224,46966.0,46965.0,0.346249]
[1641176871545,0.183224,46966.0,46965.0,0.5078776]
[1641176871747,0.183224,46966.0,46965.0,0.8541266]
[1641176871943,0.183224,46966.0,46965.0,0.346249]
[1641176873344,0.183224,46966.0,46965.0,0.8541266]
[1641176874145,0.183224,46966.0,46965.0,1.54981954]
[1641176874146,0.13,46966.0,46965.0,1.54981954]
[1641176874346,0.13,46966.0,46965.0,1.5510474]
[1641176875589,0.13,46966.0,46965.0,1.25305446]
[1641176876390,0.13,46966.0,46965.0,2.56952888]
[1641176876791,0.13,46966.0,46965.0,1.61502978]
[1641176880352,0.13,46966.0,46965.0,2.56966132]
[1641176880750,0.13,46966.0,46965.0,1.61502978]
[1641176887246,0.13,46966.0,46965.0,1.26502978]
[1641176889849,0.13,46966.0,46965.0,0.75715218]
[1641176890491,0.13,46966.0,46965.0,1.02175433]
[1641176890698,0.13,46966.0,46965.0,1.07175433]
[1641176891094,0.13,46966.0,46965.0,0.346249]
[1641176891297,0.13,46966.0,46964.0,0.053226]
[1641176891494,0.183225,46966.0,46964.0,0.053226]
[1641176892795,0.183225,46966.0,46964.0,0.65118708]
[1641176894539,0.183225,46966.0,46964.0,0.053226]
[1641176901007,0.183225,46966.0,46963.0,0.053228]
[1641176901008,0.51624659,46966.0,46963.0,0.053228]
[1641176902340,0.51624659,46966.0,46962.0,0.59796108]
[1641176903141,0.51624659,46966.0,46957.0,0.106457]
[1641176903343,0.51624659,46966.0,46964.0,0.5559038]
[1641176903742,0.51624659,46966.0,46962.0,0.053228]
[1641176903943,0.05323,46965.0,46962.0,0.053228]
[1641176904644,0.05323,46965.0,46963.0,0.55585731]
[1641176906592,0.05323,46965.0,46963.0,0.60908331]
[1641176906993,0.05323,46965.0,46964.0,0.55585731]
[1641176918344,0.05323,46965.0,46964.0,0.2]
[1641176918747,0.13,46966.0,46964.0,0.2]
[1641176919150,0.13,46966.0,46965.0,0.053219]
[1641176919748,0.13,46966.0,46965.0,0.95942833]
[1641176947057,0.13,46966.0,46965.0,1.00942833]
[1641176947554,0.13,46966.0,46965.0,1.54249612]
[1641176947759,0.13,46966.0,46965.0,1.59146398]
[1641176947957,0.13,46966.0,46965.0,2.16862592]
[1641176948153,0.13,46966.0,46965.0,2.30230655]
[1641176948555,0.13,46966.0,46965.0,2.60820395]
[1641176949655,0.13,46966.0,46965.0,3.20430395]
[1641176949857,0.13,46966.0,46965.0,3.70430395]
[1641176950902,0.13,46966.0,46965.0,4.05430395]
[1641176951102,0.13,46966.0,46965.0,3.70430395]
[1641176951502,0.13,46966.0,46965.0,3.55430395]
[1641176952103,0.13,46966.0,46965.0,3.20430395]
[1641176952304,0.13,46966.0,46965.0,3.55430395]
[1641176952704,0.13,46966.0,46965.0,3.20430395]
[1641176953705,0.13,46966.0,46965.0,2.89840655]
[1641176955959,0.13,46966.0,46965.0,2.94840655]
[1641176956160,0.0001,46970.0,46966.0,1.16]
[1641176956360,0.0001,46970.0,46969.0,0.67992963]
[1641176956559,0.0001,46970.0,46969.0,1.22335067]
[1641176957360,0.0001,46970.0,46969.0,1.783311]
[1641176962043,0.0001,46970.0,46969.0,1.54963037]
[1641176962644,0.0001,46970.0,46969.0,1.34963037]
[1641176963449,0.0001,46970.0,46969.0,1.483311]
[1641176963645,0.0001,46970.0,46969.0,1.583311]
[1641176966296,0.0001,46970.0,46969.0,1.783311]
[1641176966696,0.0001,46970.0,46969.0,1.583311]
[1641176966898,0.0001,46970.0,46969.0,1.44963037]
[1641176967999,0.0001,46970.0,46969.0,1.64963037]
[1641176968199,0.0001,46970.0,46969.0,1.44963037]
[1641176982607,0.0001,46970.0,46969.0,1.64963037]
[1641176986149,0.0001,46970.0,46969.0,1.69963037]
[1641176988398,0.0001,46970.0,46969.0,1.64963037]
[1641176995301,0.0001,46970.0,46969.0,2.05417941]
[1641176995502,0.00790016,46974.0,46970.0,1.16]
[1641176995700,0.00790016,46974.0,46973.0,1.70751664]
[1641176995904,0.0001,46980.0,46975.0,0.2]
[1641176996101,0.0001,46980.0,46979.0,0.346249]
[1641176996301,0.0001,46980.0,46979.0,1.00883674]
[1641176996502,0.053191,46993.0,46980.0,0.99]
[1641176996701,0.053191,46993.0,46985.0,0.053191]
[1641176996900,0.053191,46993.0,46989.0,0.053191]
[1641176997204,0.053191,46993.0,46989.0,0.0477]
[1641176997600,0.053191,46993.0,46991.0,0.31806178]
[1641176997800,0.00128362,46995.0,46991.0,0.31806178]
[1641176998002,1.53248751,46999.0,46992.0,0.0477]
[1641176998202,0.60388751,46999.0,46992.0,0.64351255]
[1641176998400,0.30919184,46997.0,46993.0,0.346249]
[1641176998600,0.30919184,46997.0,46994.0,0.0477]
[1641176998961,0.30919184,46997.0,46995.0,0.59581255]
[1641176999262,0.0001,47000.0,46996.0,2.08984647]
[1641176999263,0.053186,46999.0,46996.0,2.08984647]
[1641176999460,0.053186,46999.0,46998.0,0.053186]
[1641177001461,0.053186,46999.0,46996.0,2.73884802]
[1641177001660,0.053186,46999.0,46996.0,2.68565902]
[1641177001863,0.053186,46999.0,46996.0,2.08984647]
[1641177003010,0.053186,46999.0,46996.0,2.68565902]
[1641177003209,0.053186,46999.0,46996.0,2.08984647]
[1641177005613,0.053186,46999.0,46996.0,2.68565902]
[1641177006963,0.053186,46999.0,46996.0,2.08984647]
[1641177007162,0.053186,46999.0,46996.0,2.14303547]
[1641177007364,0.103186,46999.0,46996.0,2.14303547]
[1641177007571,0.05,46998.0,46996.0,2.14303547]
[1641177007963,0.156381,46998.0,46996.0,2.08984647]
[1641177009365,0.156381,46998.0,46997.0,0.00444802]
[1641177010067,0.42195676,46998.0,46997.0,0.00444802]
[1641177010515,0.156381,46998.0,46997.0,0.00444802]
[1641177011716,0.50263,46998.0,46997.0,0.00444802]
[1641177011916,0.87273206,46998.0,46997.0,0.00444802]
[1641177012118,1.56273206,46998.0,46997.0,0.00444802]
[1641177012320,1.56394996,46998.0,46997.0,0.00444802]
[1641177012917,1.58026933,46998.0,46997.0,0.00444802]
[1641177013121,1.62796933,46998.0,46997.0,0.00444802]
[1641177013318,1.03796933,46998.0,46997.0,0.00444802]
[1641177013516,1.64185684,46998.0,46997.0,0.00444802]
[1641177014365,1.03796933,46998.0,46997.0,0.00444802]
[1641177014565,1.2144,46997.0,46994.0,0.00789259]
[1641177014766,1.62256837,46995.0,46994.0,0.00789259]
[1641177014967,1.16,46994.0,46987.0,0.59581255]
[1641177015164,0.053211,46989.0,46987.0,0.59581255]
[1641177015367,0.62776633,46988.0,46987.0,0.59581255]
[1641177015567,0.62776633,46988.0,46982.0,0.59581255]
[1641177015568,0.67776633,46988.0,46982.0,0.59581255]
[1641177015766,0.25030171,46984.0,46982.0,0.59581255]
[1641177016163,0.05321,46985.0,46982.0,0.59581255]
[1641177016364,0.15963,46985.0,46982.0,0.59581255]
[1641177016766,0.05321,46984.0,46982.0,0.59581255]
[1641177017808,0.05321,46984.0,46983.0,0.59581255]
[1641177018610,0.3335419,46984.0,46983.0,0.59581255]
[1641177018809,0.3335419,46984.0,46982.0,0.59581255]
[1641177019009,0.27157734,46983.0,46982.0,0.59581255]
[1641177019912,0.32478534,46983.0,46981.0,0.59581255]
[1641177020209,0.37799434,46983.0,46981.0,0.59581255]
[1641177020410,0.48120578,46983.0,46981.0,0.59581255]
[1641177020613,0.26793039,46982.0,46981.0,0.59581255]
[1641177021666,0.106417,46983.0,46981.0,0.59581255]
[1641177022767,0.156417,46983.0,46981.0,0.59581255]
[1641177022968,0.106417,46983.0,46981.0,0.59581255]
[1641177023171,0.106417,46983.0,46982.0,0.59581255]
[1641177023972,0.106417,46983.0,46980.0,0.59581255]
[1641177024272,0.159635,46982.0,46980.0,0.59581255]
[1641177026526,0.159635,46982.0,46981.0,0.59581255]
[1641177027127,0.159635,46982.0,46974.0,0.30017757]
[1641177027329,0.42854393,46982.0,46974.0,0.30017757]
[1641177027528,0.42854393,46982.0,46980.0,0.00488608]
[1641177028435,0.159635,46982.0,46980.0,0.00488608]
[1641177028829,0.156424,46982.0,46980.0,0.00488608]
[1641177030649,0.156424,46982.0,46978.0,0.053209]
[1641177030849,0.05,46981.0,46978.0,0.053209]
[1641177031052,0.053209,46980.0,46978.0,0.053209]
[1641177033515,0.053209,46980.0,46978.0,0.05809537]
[1641177033719,0.053209,46980.0,46979.0,0.65529335]
[1641177034516,0.053209,46980.0,46978.0,0.05809537]
[1641177036326,0.053209,46980.0,46978.0,0.00488637]
[1641177036560,0.27266193,46979.0,46978.0,0.00488637]
[1641177037158,0.61891093,46979.0,46978.0,0.00488637]
[1641177038161,0.61891093,46979.0,46978.0,0.60096065]
[1641177039461,0.61891093,46979.0,46978.0,2.86605276]
[1641177039664,0.27266193,46979.0,46978.0,2.86605276]
[1641177040809,0.27266193,46979.0,46978.0,0.60096065]
[1641177042007,0.103209,46980.0,46978.0,0.60096065]
[1641177042206,0.61437234,46979.0,46978.0,0.60096065]
[1641177044457,0.053209,46980.0,46978.0,0.60096065]
[1641177045063,0.053209,46980.0,46978.0,0.00488637]
[1641177045361,0.053209,46980.0,46979.0,2.05427024]
[1641177045557,0.053209,46980.0,46979.0,2.40051924]
[1641177045760,0.053209,46980.0,46979.0,3.06141728]
[1641177052164,0.053209,46980.0,46979.0,2.71516828]
[1641177052567,0.053209,46980.0,46979.0,3.06141728]
[1641177054467,0.173209,46980.0,46979.0,3.06141728]
[1641177054667,0.173209,46980.0,46979.0,2.71516828]
[1641177054870,0.053209,46980.0,46979.0,3.06141728]
[1641177055513,0.173209,46980.0,46979.0,3.06141728]
[1641177057316,0.053209,46980.0,46979.0,3.06141728]
[1641177057516,0.053209,46980.0,46979.0,2.40051924]
[1641177057914,0.053209,46980.0,46979.0,2.05427024]
[1641177059578,0.173209,46980.0,46979.0,2.05427024]
[1641177065023,0.053209,46980.0,46979.0,2.05427024]
[1641177065223,0.053209,46980.0,46979.0,2.40051924]
[1641177066693,0.053209,46980.0,46979.0,3.05655977]
[1641177069992,0.107389,46980.0,46979.0,3.05655977]
[1641177070819,0.05418,46980.0,46979.0,3.05655977]
[1641177071019,0.05418,46980.0,46979.0,3.10976277]
[1641177072119,0.05418,46980.0,46979.0,3.15976277]
[1641177073324,0.05418,46980.0,46979.0,3.16464896]
[1641177074762,0.05418,46980.0,46979.0,3.11464896]
[1641177075863,0.05418,46980.0,46979.0,2.71519696]
[1641177076463,0.05418,46980.0,46979.0,3.06144596]
[1641177077563,0.05418,46980.0,46979.0,3.08113596]
[1641177089260,0.05418,46980.0,46979.0,3.06144596]
[1641177089462,0.05418,46980.0,46979.0,3.06244596]
[1641177115222,0.05418,46980.0,46979.0,3.11244596]
[1641177115817,0.05418,46980.0,46979.0,3.26014596]
[1641177116018,0.05418,46980.0,46979.0,3.42097882]
[1641177116216,0.05418,46980.0,46979.0,3.78263]
[1641177116819,0.05418,46980.0,46979.0,3.91631063]
[1641177117217,0.05418,46980.0,46979.0,5.04319618]
[1641177117417,0.00789999,46987.0,46982.0,0.11169785]
[1641177117617,0.00789999,46987.0,46984.0,0.2917143]
[1641177117818,0.00789999,46987.0,46985.0,0.447139]
[1641177118017,0.00789999,46987.0,46986.0,0.32520612]
[1641177118217,0.0044,46997.0,46986.0,0.71915512]
[1641177118418,0.053192,46991.0,46988.0,0.03723423]
[1641177118619,0.053192,46991.0,46989.0,0.393949]
[1641177118819,0.053192,46991.0,46990.0,0.0477]
[1641177119091,0.053192,46991.0,46990.0,0.393949]
[1641177120690,0.053192,46991.0,46990.0,0.346249]
[1641177120893,0.053192,46991.0,46989.0,0.053194]
[1641177123522,0.053192,46991.0,46990.0,0.346249]
[1641177128578,0.053192,46991.0,46989.0,0.053194]
[1641177129379,0.05,46995.0,46990.0,0.346249]
[1641177129584,0.0044,46997.0,46990.0,0.003]
[1641177129780,0.0044,46997.0,46993.0,0.05319]
[1641177129980,0.05858,46997.0,46993.0,0.05319]
[1641177130273,0.05418,46995.0,46993.0,0.05319]
[1641177131061,0.05418,46995.0,46993.0,0.052893]
[1641177132062,0.05418,46995.0,46991.0,0.053195]
[1641177132268,0.05418,46992.0,46990.0,0.003]
[1641177133866,0.05418,46991.0,46990.0,0.003]
[1641177136672,0.05418,46991.0,46990.0,0.349249]
[1641177137073,0.05418,46991.0,46990.0,0.93986979]
[1641177138921,0.05418,46991.0,46990.0,0.98986979]
[1641177139119,0.05418,46991.0,46990.0,0.93986979]
[1641177139521,0.05418,46991.0,46990.0,0.94475485]
[1641177139722,0.05418,46991.0,46990.0,0.35413406]
[1641177140322,0.05418,46991.0,46990.0,0.94607354]
[1641177141122,0.05418,46991.0,46990.0,0.35413406]
[1641177142177,0.05418,46991.0,46990.0,1.23091188]
[1641177144778,0.05418,46991.0,46990.0,0.88466288]
[1641177145535,0.05418,46991.0,46990.0,0.00788506]
[1641177147338,0.05389451,46991.0,46990.0,0.00788506]
[1641177169232,0.04889451,46991.0,46990.0,0.00788506]
[1641177177223,0.04889451,46991.0,46990.0,0.87403369]
[1641177177425,0.04889451,46991.0,46990.0,1.22028269]
[1641177177623,0.04889451,46991.0,46990.0,0.35413406]
[1641177177824,0.04889451,46991.0,46990.0,1.22028269]
[1641177178225,0.04889451,46991.0,46990.0,0.35413406]
[1641177178723,0.04889451,46991.0,46990.0,1.22028269]
[1641177180997,0.04889451,46991.0,46990.0,1.37666569]
[1641177181194,0.06989451,46991.0,46990.0,1.37666569]
[1641177181397,0.06989451,46991.0,46990.0,1.32666569]
[1641177181795,0.06989451,46991.0,46990.0,0.98041669]
[1641177189888,0.06989451,46991.0,46990.0,1.32666569]
[1641177190573,0.06989451,46991.0,46990.0,0.98041669]
[1641177195993,0.06989451,46991.0,46990.0,1.32666569]
[1641177197293,0.06989451,46991.0,46990.0,0.98041669]
[1641177198151,0.06989451,46991.0,46990.0,1.32666569]
[1641177199252,0.06989451,46991.0,46990.0,1.32366569]
[1641177199456,0.06989451,46991.0,46990.0,1.32466569]
[1641177200954,0.06989451,46991.0,46990.0,1.37466569]
[1641177211892,0.06989451,46991.0,46990.0,0.97841669]
[1641177212845,0.06989451,46991.0,46990.0,0.11226806]
[1641177213243,0.06989451,46991.0,46990.0,0.45851706]
[1641177213444,0.06989451,46991.0,46990.0,0.71889087]
[1641177213642,0.06989451,46991.0,46990.0,1.60718937]
[1641177214243,0.06989451,46991.0,46990.0,1.65718937]
[1641177217597,0.06489451,46991.0,46990.0,1.65718937]
[1641177219495,0.06489451,46991.0,46990.0,1.39681556]
[1641177236033,0.06489451,46991.0,46990.0,1.34681556]
[1641177237235,0.06489451,46991.0,46990.0,1.39681556]
[1641177238141,0.06489451,46991.0,46990.0,1.34681556]
[1641177238338,0.06489451,46991.0,46990.0,1.39681556]
[1641177240186,0.06489451,46991.0,46990.0,1.44451556]
[1641177240380,0.06489451,46991.0,46990.0,1.54576565]
[1641177240782,0.06489451,46991.0,46990.0,1.44576565]
[1641177240979,0.06489451,46991.0,46990.0,1.54576565]
[1641177246351,0.10309061,47003.0,46997.0,0.0044]
[1641177246602,0.0002,47014.0,46997.0,0.0044]
[1641177246603,0.0002,47020.0,47018.0,1.05822585]
[1641177246799,0.0002,47024.0,47020.0,0.01409]
[1641177246800,0.74282699,47024.0,47020.0,0.01409]
[1641177247000,0.0002,47025.0,47021.0,0.6438]
[1641177247001,0.638,47023.0,47021.0,0.6438]
[1641177247399,0.638,47023.0,47022.0,0.53927781]
[1641177247597,0.638,47023.0,47022.0,0.58697781]
[1641177247797,0.63841993,47023.0,47022.0,0.69013681]
[1641177248398,0.63841993,47023.0,47022.0,1.03638581]
[1641177249199,0.63841993,47023.0,47022.0,1.32554195]
[1641177249998,0.63841993,47023.0,47022.0,1.410585]
[1641177250240,0.63841993,47023.0,47022.0,1.32554195]
[1641177250431,0.63841993,47023.0,47022.0,1.410585]
[1641177252034,0.63841993,47023.0,47022.0,2.006685]
[1641177252232,0.63841993,47023.0,47022.0,2.01156675]
[1641177256086,0.63841993,47023.0,47022.0,1.9265237]
[1641177256486,0.69259993,47023.0,47022.0,1.9265237]
[1641177259138,0.69259993,47023.0,47022.0,3.13317009]
[1641177261581,0.69259993,47023.0,47022.0,1.9265237]
[1641177264484,0.69259993,47023.0,47022.0,1.9275237]
[1641177268151,0.69259993,47023.0,47022.0,0.05904075]
[1641177269209,0.69259993,47023.0,47022.0,0.37304812]
[1641177275949,0.69266469,47023.0,47022.0,0.37304812]
[1641177277791,0.69224476,47023.0,47022.0,0.37304812]
[1641177279194,0.69224476,47023.0,47022.0,0.41025853]
[1641177279996,0.69224476,47023.0,47022.0,0.37304812]
[1641177285595,0.69224476,47023.0,47022.0,0.00588175]
[1641177285795,1.03849376,47023.0,47022.0,0.00588175]
[1641177285998,0.69224476,47023.0,47022.0,0.00588175]
[1641177286796,0.69224476,47023.0,47022.0,0.24724468]
[1641177287197,0.69224476,47023.0,47022.0,0.28445547]
[1641177292505,0.69224476,47023.0,47022.0,0.33445547]
[1641177292708,0.69224476,47023.0,47022.0,0.68070447]
[1641177294006,0.69224476,47023.0,47022.0,0.63070447]
[1641177295244,6.476e-05,47023.0,47022.0,0.63070447]
[1641177300392,6.476e-05,47023.0,47022.0,0.68070447]
[1641177304246,0.00048469,47023.0,47022.0,0.68070447]
[1641177307104,0.00048469,47023.0,47022.0,1.88727868]
[1641177307402,0.00048469,47023.0,47022.0,0.68070447]
[1641177308005,0.00048469,47023.0,47022.0,1.88727868]
[1641177308202,0.00048469,47023.0,47022.0,1.79518614]
[1641177308405,0.00048469,47023.0,47022.0,0.347249]
[1641177308803,0.00048469,47023.0,47022.0,1.55382321]
[1641177309206,0.00048469,47023.0,47022.0,0.347249]
[1641177309605,0.00048469,47023.0,47022.0,1.55870495]
[1641177310007,0.00048469,47023.0,47022.0,1.59591574]
[1641177310272,0.00102533,47023.0,47022.0,1.59591574]
[1641177310463,0.00102533,47023.0,47022.0,1.64591574]
[1641177325439,0.00102533,47023.0,47022.0,1.65209647]
[1641177325640,0.00102533,47023.0,47022.0,1.64591574]
[1641177325843,0.00102533,47023.0,47022.0,1.65134197]
[1641177326155,0.0025,47029.0,47025.0,0.05418]
[1641177326156,0.0023,47029.0,47025.0,0.05418]
[1641177326345,0.0005,47036.0,47035.0,1.22848]
[1641177326542,0.0005,47036.0,47035.0,0.99470072]
[1641177326742,0.0005,47036.0,47035.0,0.68459818]
[1641177326941,0.0005,47036.0,47035.0,1.07404136]
[1641177327441,0.0005,47036.0,47035.0,0.68459818]
[1641177328043,0.0005,47036.0,47035.0,1.89078729]
[1641177330487,0.00065468,47042.0,47035.0,1.89078729]
[1641177330690,5.468e-05,47042.0,47041.0,1.00418]
[1641177330892,5.468e-05,47042.0,47041.0,0.85465136]
[1641177331306,5.468e-05,47042.0,47041.0,0.90465136]
[1641177331692,5.468e-05,47042.0,47041.0,3.46749062]
[1641177332292,5.468e-05,47042.0,47041.0,3.54186865]
[1641177332744,5.468e-05,47042.0,47041.0,3.26902692]
[1641177332939,0.0004,47046.0,47041.0,3.26902692]
[1641177332940,0.00755942,47049.0,47043.0,0.05418]
[1641177333140,0.00755942,47049.0,47047.0,0.05418]
[1641177333739,0.053131,47048.0,47047.0,0.05418]
[1641177334341,0.0005,47050.0,47047.0,0.400429]
[1641177334639,0.0004747,47049.0,47047.0,0.05418]
[1641177335038,0.00045644,47048.0,47047.0,0.05418]
[1641177335638,0.00045644,47048.0,47047.0,0.400429]
[1641177335838,0.00045644,47048.0,47047.0,0.40530809]
[1641177336239,0.00045644,47048.0,47047.0,0.45844009]
[1641177337295,0.00045644,47048.0,47047.0,0.11219109]
[1641177337897,0.00045644,47048.0,47047.0,0.45844009]
[1641177338698,0.00053585,47048.0,47047.0,0.11219109]
[1641177344500,0.00053585,47048.0,47047.0,0.11319109]
[1641177347307,0.00053585,47048.0,47047.0,0.45944009]
[1641177348555,0.12053585,47048.0,47047.0,0.45444009]
[1641177348855,0.17053585,47048.0,47047.0,0.45444009]
[1641177350666,0.00053585,47048.0,47047.0,0.45434009]
[1641177350858,0.00053585,47048.0,47047.0,0.45384009]
[1641177350859,0.00073585,47048.0,47047.0,0.45384009]
[1641177354714,0.00073585,47048.0,47047.0,0.10759109]
[1641177354908,0.00073585,47048.0,47047.0,0.45384009]
[1641177357957,0.00073585,47048.0,47047.0,0.72512689]
[1641177359695,0.00073585,47048.0,47047.0,0.45384009]
[1641177359894,0.00073585,47048.0,47047.0,0.50154009]
[1641177360291,0.00073585,47048.0,47047.0,0.45384009]
[1641177360892,0.00073585,47048.0,47047.0,0.10759109]
[1641177365243,0.00073585,47048.0,47047.0,0.45384009]
[1641177365445,0.00027941,47048.0,47047.0,0.45384009]
[1641177367992,0.00027941,47048.0,47047.0,0.45871959]
[1641177372744,0.00027941,47048.0,47047.0,0.11247059]
[1641177373542,0.00027941,47048.0,47047.0,0.45871959]
[1641177378056,0.00027941,47048.0,47047.0,1.05632545]
[1641177380258,0.00027941,47048.0,47047.0,0.71007645]
[1641177380456,0.00027941,47048.0,47047.0,0.65207445]
[1641177381256,0.00027941,47048.0,47047.0,0.05446859]
[1641177381512,0.34652841,47048.0,47047.0,0.05446859]
[1641177381711,0.39966088,47048.0,47047.0,0.05446859]
[1641177381911,0.49966088,47048.0,47047.0,0.05446859]
[1641177382713,0.82129777,47048.0,47047.0,0.05446859]
[1641177383512,0.72129777,47048.0,47047.0,0.05446859]
[1641177384616,0.82129777,47048.0,47047.0,0.05446859]
[1641177386354,0.82129777,47048.0,47047.0,0.0010095]
[1641177386554,0.83761714,47048.0,47047.0,0.0010095]
[1641177387556,0.43,47047.0,47042.0,2.13272333]
[1641177387757,0.10627561,47046.0,47042.0,2.13272333]
[1641177387956,0.34803128,47045.0,47042.0,2.13272333]
[1641177388156,0.39803128,47045.0,47042.0,2.13272333]
[1641177388359,0.00038341,47044.0,47042.0,2.13272333]
[1641177388756,0.00036516,47043.0,47042.0,2.13272333]
[1641177389212,0.28364255,47043.0,47042.0,2.13272333]
[1641177389614,0.33364255,47043.0,47042.0,2.13272333]
[1641177390016,0.05051576,47043.0,47042.0,2.13272333]
[1641177390418,0.00051576,47043.0,47042.0,2.13272333]
[1641177390620,0.00051576,47043.0,47042.0,2.07958633]
[1641177390621,0.27827698,47043.0,47042.0,2.07958633]
[1641177392421,0.27827698,47043.0,47042.0,2.06958633]
[1641177397900,0.00051576,47043.0,47042.0,2.06958633]
[1641177401051,0.28012553,47043.0,47042.0,2.06958633]
[1641177402154,0.00051576,47043.0,47042.0,2.06958633]
[1641177403357,0.27815858,47043.0,47042.0,2.06958633]
[1641177403559,0.32815858,47043.0,47041.0,0.00488002]
[1641177403756,0.68082542,47042.0,47041.0,0.00488002]
[1641177403999,0.68117232,47042.0,47041.0,0.00488002]
[1641177406501,0.33492332,47042.0,47041.0,0.00488002]
[1641177419003,0.0003469,47042.0,47041.0,0.00488002]
[1641177419403,0.27578577,47042.0,47041.0,0.00488002]
[1641177420910,0.32348577,47042.0,47041.0,2e-08]
[1641177421111,0.76973477,47042.0,47041.0,2e-08]
[1641177421305,0.106309,47041.0,47037.0,0.00788537]
[1641177421508,0.346249,47038.0,47037.0,0.00788537]
[1641177421705,0.82853772,47038.0,47037.0,0.00788537]
[1641177421905,0.92881159,47038.0,47037.0,0.00788537]
[1641177422309,0.92881159,47038.0,47035.0,0.0043]
[1641177422310,0.25440147,47037.0,47035.0,0.0043]
[1641177422505,0.41026837,47036.0,47035.0,0.0043]
[1641177422764,0.41050572,47036.0,47035.0,0.0043]
[1641177422955,0.4156852,47036.0,47035.0,0.0043]
[1641177423157,0.5156852,47036.0,47035.0,0.0043]
[1641177427309,0.4156852,47036.0,47035.0,0.0043]
[1641177429711,0.11425672,47036.0,47035.0,0.0043]
[1641177430383,0.00023735,47036.0,47035.0,0.0043]
[1641177430584,0.05023735,47036.0,47035.0,0.0043]
[1641177430985,0.1034519,47036.0,47034.0,1.83810138]
[1641177431183,0.10352145,47036.0,47034.0,2.0991519]
[1641177431381,0.00021909,47035.0,47034.0,2.1522979]
[1641177434818,0.00021909,47035.0,47034.0,2.1422979]
[1641177436219,0.00021909,47035.0,47034.0,2.1322979]
[1641177441701,0.00028782,47035.0,47034.0,2.1322979]
[1641177446573,0.00028782,47035.0,47034.0,2.4785469]
[1641177447570,0.00028782,47035.0,47034.0,2.1322979]
[1641177448173,0.00028782,47035.0,47034.0,1.87124738]
[1641177448479,0.05343383,47035.0,47034.0,1.81810138]
[1641177450504,0.05343383,47035.0,47034.0,2.41489048]
[1641177452205,0.05343383,47035.0,47034.0,1.81810138]
[1641177460270,0.05343383,47035.0,47034.0,2.16435038]
[1641177460271,0.00028782,47035.0,47034.0,2.16435038]
[1641177460665,0.00028782,47035.0,47034.0,2.76113948]
[1641177461263,6.873e-05,47035.0,47034.0,2.76113948]
[1641177461487,6.873e-05,47035.0,47034.0,2.16435038]
[1641177467306,6.873e-05,47035.0,47034.0,1.81810138]
[1641177469760,6.873e-05,47035.0,47034.0,2.41581962]
[1641177470461,6.873e-05,47035.0,47034.0,1.81810138]
[1641177474723,6.873e-05,47035.0,47034.0,2.41572429]
[1641177475366,6.873e-05,47035.0,47034.0,1.81810138]
[1641177475564,0.04954246,47036.0,47034.0,1.81810138]
[1641177475772,0.04394816,47036.0,47034.0,1.81810138]
[1641177476468,0.04369227,47036.0,47034.0,1.81810138]
[1641177477069,0.04369227,47036.0,47035.0,0.59744039]
[1641177477568,0.04392962,47036.0,47035.0,0.59744039]
[1641177483758,0.04392962,47036.0,47034.0,2.46868877]
[1641177484259,0.00021909,47035.0,47034.0,1.87124838]
[1641177487111,0.00021909,47035.0,47034.0,2.21749738]
[1641177488614,0.00021909,47035.0,47034.0,1.87124838]
[1641177493858,0.00021909,47035.0,47034.0,1.81810138]
[1641177494908,0.00021909,47035.0,47034.0,2.41488435]
[1641177496714,0.00021909,47035.0,47034.0,2.76113335]
[1641177496913,0.00021909,47035.0,47034.0,2.76242864]
[1641177497616,0.00021909,47035.0,47034.0,2.16564567]
[1641177498662,0.00021909,47035.0,47034.0,3.31223766]
[1641177502617,0.00021909,47035.0,47034.0,3.36223766]
[1641177503820,0.00021909,47035.0,47034.0,3.31223766]
[1641177505373,0.00021909,47035.0,47034.0,2.16564567]
[1641177506572,0.00021909,47035.0,47034.0,3.26108778]
[1641177513776,0.0001,47040.0,47035.0,1.68244981]
[1641177513777,6.32e-05,47040.0,47035.0,1.68244981]
[1641177513981,6.32e-05,47040.0,47039.0,0.24464184]
[1641177514379,6.32e-05,47040.0,47036.0,0.106278]
[1641177514584,6.32e-05,47040.0,47037.0,0.346249]
[1641177514777,7.303e-05,47039.0,47037.0,0.346249]
[1641177515780,7.303e-05,47039.0,47037.0,0.383446]
[1641177516279,7.303e-05,47039.0,47038.0,0.05314]
[1641177516818,7.303e-05,47039.0,47038.0,0.399389]
[1641177517219,7.303e-05,47039.0,47038.0,1.34492322]
[1641177517618,7.303e-05,47039.0,47038.0,1.084869]
[1641177518219,7.303e-05,47039.0,47038.0,2.19569993]
[1641177521473,7.303e-05,47039.0,47038.0,1.084869]
[1641177521671,7.303e-05,47039.0,47038.0,1.40891047]
[1641177523676,7.303e-05,47039.0,47038.0,1.35532784]
[1641177525525,7.303e-05,47039.0,47038.0,1.35570825]
[1641177526726,7.303e-05,47039.0,47038.0,1.084869]
[1641177526928,7.303e-05,47039.0,47038.0,1.037169]
[1641177527127,7.303e-05,47039.0,47038.0,0.69092]
[1641177527328,7.303e-05,47039.0,47038.0,0.63778]
[1641177527781,0.0163924,47039.0,47038.0,0.63778]
[1641177533014,0.0663924,47039.0,47038.0,0.63778]
[1641177535562,0.05007303,47039.0,47038.0,0.63778]